[Event "Titled Tuesday Blitz July 11 Late 2023"]
[White "Shimanov, Aleksandr"]
[Black "Priasmoro, Novendra"]
[WhiteFideId "4198603"]
[BlackFideId "7105029"]
[WhiteElo "2929"]
[BlackElo "2765"]
[Result "1-0"]
[Round "6"]
[TimeControl "180+2"]
[Date "2023.07.11"]
[WhiteClock "0:02:25"]
[BlackClock "0:00:40"]
[Board "15"]

1. d4 {[%clk 0:03:00]}  Nf6 {[%clk 0:01:46]} 2. Bg5 {[%clk 0:02:59]}  e6 {[%clk 0:01:47]} 3. Nd2 {[%clk 0:02:59]}  d5 {[%clk 0:01:47]} 4. e3 {[%clk 0:02:59]}  Be7 {[%clk 0:01:47]} 5. Bd3 {[%clk 0:02:58]}  h6 {[%clk 0:01:43]} 6. Bxf6 {[%clk 0:02:58]}  Bxf6 {[%clk 0:01:44]} 7. f4 {[%clk 0:02:58]}  b6 {[%clk 0:01:45]} 8. Qe2 {[%clk 0:02:58]}  a5 {[%clk 0:01:44]} 9. Ngf3 {[%clk 0:02:57]}  Ba6 {[%clk 0:01:45]} 10. O-O {[%clk 0:02:57]}  Bxd3 {[%clk 0:01:45]} 11. cxd3 {[%clk 0:02:58]}  O-O {[%clk 0:01:45]} 12. Rac1 {[%clk 0:02:57]}  Qd6 {[%clk 0:01:35]} 13. Ne5 {[%clk 0:02:49]}  c5 {[%clk 0:01:35]} 14. Ndf3 {[%clk 0:02:49]}  Rc8 {[%clk 0:01:31]} 15. Rc2 {[%clk 0:02:46]}  Nd7 {[%clk 0:01:31]} 16. Rfc1 {[%clk 0:02:45]}  Rc7 {[%clk 0:01:30]} 17. Nxd7 {[%clk 0:02:42]}  Qxd7 {[%clk 0:01:26]} 18. dxc5 {[%clk 0:02:42]}  bxc5 {[%clk 0:01:16]} 19. Rxc5 {[%clk 0:02:43]}  Rxc5 {[%clk 0:01:17]} 20. Rxc5 {[%clk 0:02:44]}  Qd6 {[%clk 0:01:18]} 21. d4 {[%clk 0:02:43]}  a4 {[%clk 0:01:16]} 22. Qc2 {[%clk 0:02:43]}  Qb6 {[%clk 0:01:08]} 23. Ne1 {[%clk 0:02:40]}  g6 {[%clk 0:01:01]} 24. Nd3 {[%clk 0:02:39]}  Kg7 {[%clk 0:01:02]} 25. h3 {[%clk 0:02:35]}  h5 {[%clk 0:01:01]} 26. Rc6 {[%clk 0:02:30]}  Qb5 {[%clk 0:01:01]} 27. Rc7 {[%clk 0:02:30]}  Bd8 {[%clk 0:00:55]} 28. Rc5 {[%clk 0:02:28]}  Qb7 {[%clk 0:00:52]} 29. Kh2 {[%clk 0:02:27]}  h4 {[%clk 0:00:48]} 30. Ne5 {[%clk 0:02:26]}  Bf6 {[%clk 0:00:40]} 31. Rc7 {[%clk 0:02:25]} 1-0


[Site "https://www.chess.com"]

[Event "Titled Tuesday Blitz July 11 Late 2023"]
[White "Keymer, Vincent"]
[Black "Tanenbaum, Zachary"]
[WhiteFideId "12940690"]
[BlackFideId "2060850"]
[WhiteElo "2926"]
[BlackElo "2760"]
[Result "1-0"]
[Round "6"]
[TimeControl "180+2"]
[Date "2023.07.11"]
[WhiteClock "0:00:43"]
[BlackClock "0:00:00"]
[Board "16"]

1. a3 {[%clk 0:03:00]}  d5 {[%clk 0:02:58]} 2. Nf3 {[%clk 0:03:00]}  c5 {[%clk 0:02:58]} 3. b4 {[%clk 0:03:00]}  Nc6 {[%clk 0:02:57]} 4. bxc5 {[%clk 0:03:00]}  e5 {[%clk 0:02:57]} 5. Bb2 {[%clk 0:02:50]}  Bxc5 {[%clk 0:02:57]} 6. e3 {[%clk 0:02:47]}  Qe7 {[%clk 0:02:44]} 7. Bb5 {[%clk 0:02:46]}  Bd6 {[%clk 0:02:42]} 8. c4 {[%clk 0:02:30]}  a6 {[%clk 0:02:40]} 9. Qa4 {[%clk 0:02:10]}  Bd7 {[%clk 0:02:34]} 10. cxd5 {[%clk 0:02:08]}  Nb8 {[%clk 0:01:59]} 11. Bxd7+ {[%clk 0:02:05]}  Nxd7 {[%clk 0:02:00]} 12. e4 {[%clk 0:01:45]}  Nf6 {[%clk 0:01:55]} 13. d3 {[%clk 0:01:45]}  O-O {[%clk 0:01:44]} 14. O-O {[%clk 0:01:45]}  b5 {[%clk 0:01:38]} 15. Qd1 {[%clk 0:01:45]}  Rfc8 {[%clk 0:01:36]} 16. Re1 {[%clk 0:01:43]}  Nb6 {[%clk 0:01:24]} 17. Ra2 {[%clk 0:01:25]}  Rc7 {[%clk 0:01:13]} 18. d4 {[%clk 0:01:24]}  Nc4 {[%clk 0:01:12]} 19. dxe5 {[%clk 0:01:17]}  Nxe5 {[%clk 0:00:56]} 20. Bxe5 {[%clk 0:01:10]}  Bxe5 {[%clk 0:00:57]} 21. Nxe5 {[%clk 0:01:10]}  Qxe5 {[%clk 0:00:57]} 22. Nd2 {[%clk 0:01:11]}  Re8 {[%clk 0:00:25]} 23. Nf3 {[%clk 0:01:08]}  Qf4 {[%clk 0:00:17]} 24. e5 {[%clk 0:01:04]}  Ng4 {[%clk 0:00:15]} 25. Rae2 {[%clk 0:01:03]}  Rce7 {[%clk 0:00:15]} 26. Re4 {[%clk 0:01:00]}  Qf5 {[%clk 0:00:14]} 27. d6 {[%clk 0:00:59]}  Rd7 {[%clk 0:00:13]} 28. h3 {[%clk 0:00:57]}  Nf6 {[%clk 0:00:12]} 29. Nh4 {[%clk 0:00:46]}  Qg5 {[%clk 0:00:05]} 30. exf6 {[%clk 0:00:45]}  Rxe4 {[%clk 0:00:04]} 31. Rxe4 {[%clk 0:00:45]}  h6 {[%clk 0:00:02]} 32. fxg7 {[%clk 0:00:43]}  Kh7 {[%clk 0:00:00]} 33. Rg4 {[%clk 0:00:43]} 1-0


[Site "https://www.chess.com"]

[Event "Titled Tuesday Blitz July 11 Late 2023"]
[White "Ibarra Jerez, Jose Carlos"]
[Black "Haydon, David L"]
[WhiteFideId "2226332"]
[BlackFideId "415405"]
[WhiteElo "2923"]
[BlackElo "2725"]
[Result "1-0"]
[Round "6"]
[TimeControl "180+2"]
[Date "2023.07.11"]
[WhiteClock "0:00:04"]
[BlackClock "0:00:00"]
[Board "17"]

1. e4 {[%clk 0:03:00]}  c6 {[%clk 0:02:57]} 2. Nf3 {[%clk 0:02:59]}  d5 {[%clk 0:02:58]} 3. d3 {[%clk 0:03:00]}  Bg4 {[%clk 0:02:57]} 4. h3 {[%clk 0:02:59]}  Bxf3 {[%clk 0:02:57]} 5. Qxf3 {[%clk 0:03:00]}  e6 {[%clk 0:02:58]} 6. g3 {[%clk 0:03:00]}  Nf6 {[%clk 0:02:58]} 7. Bg2 {[%clk 0:03:00]}  Bd6 {[%clk 0:02:58]} 8. Qe2 {[%clk 0:03:00]}  Qc7 {[%clk 0:02:57]} 9. O-O {[%clk 0:02:58]}  Nbd7 {[%clk 0:02:56]} 10. f4 {[%clk 0:02:57]}  dxe4 {[%clk 0:02:56]} 11. dxe4 {[%clk 0:02:56]}  e5 {[%clk 0:02:55]} 12. f5 {[%clk 0:02:54]}  h5 {[%clk 0:02:54]} 13. a4 {[%clk 0:02:53]}  Bc5+ {[%clk 0:02:52]} 14. Kh1 {[%clk 0:02:48]}  a6 {[%clk 0:02:50]} 15. Nd2 {[%clk 0:02:47]}  a5 {[%clk 0:02:49]} 16. Nc4 {[%clk 0:02:45]}  Nb6 {[%clk 0:02:46]} 17. Nd2 {[%clk 0:02:35]}  Nbd7 {[%clk 0:02:41]} 18. Nc4 {[%clk 0:01:52]}  Nb6 {[%clk 0:02:36]} 19. Bg5 {[%clk 0:01:50]}  Nxc4 {[%clk 0:02:32]} 20. Qxc4 {[%clk 0:01:49]}  Qe7 {[%clk 0:02:31]} 21. Rad1 {[%clk 0:01:45]}  Bb6 {[%clk 0:02:27]} 22. Rd3 {[%clk 0:01:42]}  Qb4 {[%clk 0:02:21]} 23. Qb3 {[%clk 0:01:07]}  Rd8 {[%clk 0:02:05]} 24. Rxd8+ {[%clk 0:01:01]}  Bxd8 {[%clk 0:02:01]} 25. Qxb4 {[%clk 0:00:55]}  axb4 {[%clk 0:02:01]} 26. Rd1 {[%clk 0:00:55]}  Bc7 {[%clk 0:01:56]} 27. Bf3 {[%clk 0:00:55]}  Nd7 {[%clk 0:01:54]} 28. Kg2 {[%clk 0:00:55]}  f6 {[%clk 0:01:52]} 29. Bd2 {[%clk 0:00:55]}  Bd6 {[%clk 0:01:47]} 30. h4 {[%clk 0:00:54]}  Ke7 {[%clk 0:01:47]} 31. Be1 {[%clk 0:00:48]}  Nc5 {[%clk 0:01:39]} 32. b3 {[%clk 0:00:41]}  Nd7 {[%clk 0:01:39]} 33. Kf1 {[%clk 0:00:40]}  Bc5 {[%clk 0:01:26]} 34. Ke2 {[%clk 0:00:39]}  Bd6 {[%clk 0:01:23]} 35. Bf2 {[%clk 0:00:39]}  Nc5 {[%clk 0:01:20]} 36. Be3 {[%clk 0:00:36]}  Rd8 {[%clk 0:01:16]} 37. Bf2 {[%clk 0:00:25]}  b6 {[%clk 0:01:09]} 38. Be1 {[%clk 0:00:25]}  Rd7 {[%clk 0:00:59]} 39. Bxb4 {[%clk 0:00:23]}  Nxe4 {[%clk 0:00:58]} 40. Be1 {[%clk 0:00:24]}  Nc5 {[%clk 0:00:54]} 41. Bxc6 {[%clk 0:00:20]}  Rc7 {[%clk 0:00:54]} 42. Bd5 {[%clk 0:00:21]}  Na6 {[%clk 0:00:48]} 43. c3 {[%clk 0:00:19]}  Nc5 {[%clk 0:00:46]} 44. Ra1 {[%clk 0:00:16]}  Ra7 {[%clk 0:00:45]} 45. Bc4 {[%clk 0:00:14]}  Ne4 {[%clk 0:00:44]} 46. b4 {[%clk 0:00:10]}  Bc7 {[%clk 0:00:44]} 47. Bd3 {[%clk 0:00:07]}  Nd6 {[%clk 0:00:44]} 48. Kf3 {[%clk 0:00:07]}  Ra8 {[%clk 0:00:42]} 49. Be4 {[%clk 0:00:06]}  Ra7 {[%clk 0:00:40]} 50. Bf2 {[%clk 0:00:06]}  Ra6 {[%clk 0:00:38]} 51. Be3 {[%clk 0:00:04]}  Kd7 {[%clk 0:00:35]} 52. Bd3 {[%clk 0:00:04]}  Ra8 {[%clk 0:00:34]} 53. Be4 {[%clk 0:00:04]}  Ra6 {[%clk 0:00:33]} 54. Bc2 {[%clk 0:00:04]}  Ra8 {[%clk 0:00:32]} 55. Rg1 {[%clk 0:00:05]}  Rh8 {[%clk 0:00:29]} 56. g4 {[%clk 0:00:05]}  hxg4+ {[%clk 0:00:28]} 57. Rxg4 {[%clk 0:00:06]}  Ne8 {[%clk 0:00:27]} 58. Bf2 {[%clk 0:00:04]}  Ke7 {[%clk 0:00:26]} 59. Bd3 {[%clk 0:00:04]}  Rh7 {[%clk 0:00:25]} 60. Bb5 {[%clk 0:00:04]}  Nd6 {[%clk 0:00:25]} 61. Bd3 {[%clk 0:00:04]}  Nf7 {[%clk 0:00:24]} 62. Be4 {[%clk 0:00:04]}  Nd6 {[%clk 0:00:24]} 63. Rg1 {[%clk 0:00:03]}  Kd7 {[%clk 0:00:22]} 64. Ra1 {[%clk 0:00:04]}  Kc8 {[%clk 0:00:21]} 65. a5 {[%clk 0:00:04]}  bxa5 {[%clk 0:00:20]} 66. bxa5 {[%clk 0:00:05]}  Nxe4 {[%clk 0:00:20]} 67. Kxe4 {[%clk 0:00:05]}  Rh8 {[%clk 0:00:16]} 68. a6 {[%clk 0:00:05]}  Kb8 {[%clk 0:00:16]} 69. Rb1+ {[%clk 0:00:05]}  Ka8 {[%clk 0:00:14]} 70. Rb7 {[%clk 0:00:06]}  Rc8 {[%clk 0:00:13]} 71. Kd5 {[%clk 0:00:06]}  Rd8+ {[%clk 0:00:07]} 72. Ke4 {[%clk 0:00:04]}  Rc8 {[%clk 0:00:05]} 73. c4 {[%clk 0:00:04]}  Bb8 {[%clk 0:00:02]} 74. Kd5 {[%clk 0:00:03]}  Rd8+ {[%clk 0:00:01]} 75. Ke4 {[%clk 0:00:04]}  Rc8 {[%clk 0:00:00]} 76. Rxg7 {[%clk 0:00:04]} 1-0


[Site "https://www.chess.com"]

[Event "Titled Tuesday Blitz July 11 Late 2023"]
[White "Jaracz, Pawel"]
[Black "Gordievsky, Dmitry"]
[WhiteFideId "1102222"]
[BlackFideId "24112798"]
[WhiteElo "2719"]
[BlackElo "2910"]
[Result "0-1"]
[Round "6"]
[TimeControl "180+2"]
[Date "2023.07.11"]
[WhiteClock "0:00:00"]
[BlackClock "0:00:03"]
[Board "19"]

1. e4 {[%clk 0:02:56]}  c5 {[%clk 0:03:00]} 2. Nf3 {[%clk 0:02:54]}  e6 {[%clk 0:03:00]} 3. d4 {[%clk 0:02:53]}  cxd4 {[%clk 0:03:01]} 4. Nxd4 {[%clk 0:02:54]}  Nf6 {[%clk 0:03:02]} 5. Nc3 {[%clk 0:02:54]}  Nc6 {[%clk 0:03:03]} 6. Bf4 {[%clk 0:02:49]}  d6 {[%clk 0:03:02]} 7. Ndb5 {[%clk 0:02:49]}  e5 {[%clk 0:03:03]} 8. Bg5 {[%clk 0:02:49]}  a6 {[%clk 0:03:04]} 9. Na3 {[%clk 0:02:48]}  b5 {[%clk 0:03:04]} 10. Nd5 {[%clk 0:02:48]}  Be7 {[%clk 0:03:05]} 11. Bxf6 {[%clk 0:02:48]}  Bxf6 {[%clk 0:03:06]} 12. c4 {[%clk 0:02:49]}  b4 {[%clk 0:03:06]} 13. Nc2 {[%clk 0:02:49]}  a5 {[%clk 0:03:06]} 14. Be2 {[%clk 0:02:49]}  g6 {[%clk 0:03:02]} 15. O-O {[%clk 0:02:49]}  Bg7 {[%clk 0:03:02]} 16. Bf3 {[%clk 0:02:48]}  O-O {[%clk 0:03:02]} 17. Qe2 {[%clk 0:02:47]}  h5 {[%clk 0:02:58]} 18. Rfd1 {[%clk 0:02:46]}  Be6 {[%clk 0:02:58]} 19. Rd2 {[%clk 0:02:23]}  Qb8 {[%clk 0:02:57]} 20. b3 {[%clk 0:02:15]}  a4 {[%clk 0:02:52]} 21. Rad1 {[%clk 0:02:07]}  axb3 {[%clk 0:02:49]} 22. axb3 {[%clk 0:02:07]}  Bh6 {[%clk 0:02:43]} 23. Nde3 {[%clk 0:02:06]}  Ra2 {[%clk 0:02:34]} 24. Qd3 {[%clk 0:01:55]}  Rd8 {[%clk 0:02:27]} 25. g3 {[%clk 0:01:50]}  Qa7 {[%clk 0:02:18]} 26. Kg2 {[%clk 0:01:46]}  Qc5 {[%clk 0:02:01]} 27. Re2 {[%clk 0:01:40]}  Rb2 {[%clk 0:01:43]} 28. Ra1 {[%clk 0:01:20]}  Kg7 {[%clk 0:01:23]} 29. Ra6 {[%clk 0:01:18]}  Bxe3 {[%clk 0:01:00]} 30. fxe3 {[%clk 0:01:11]}  Rxb3 {[%clk 0:00:42]} 31. Qxb3 {[%clk 0:01:03]}  Bxc4 {[%clk 0:00:42]} 32. Rxc6 {[%clk 0:00:52]}  Bxb3 {[%clk 0:00:24]} 33. Rxc5 {[%clk 0:00:52]}  dxc5 {[%clk 0:00:25]} 34. Ne1 {[%clk 0:00:45]}  Be6 {[%clk 0:00:21]} 35. Nc2 {[%clk 0:00:17]}  Rb8 {[%clk 0:00:18]} 36. Re1 {[%clk 0:00:10]}  c4 {[%clk 0:00:17]} 37. Rb1 {[%clk 0:00:10]}  b3 {[%clk 0:00:17]} 38. Na3 {[%clk 0:00:10]}  c3 {[%clk 0:00:17]} 39. Rc1 {[%clk 0:00:04]}  Ra8 {[%clk 0:00:10]} 40. Nb1 {[%clk 0:00:01]}  c2 {[%clk 0:00:05]} 41. Nd2 {[%clk 0:00:00]}  Rc8 {[%clk 0:00:03]} 0-1


[Site "https://www.chess.com"]

[Event "Titled Tuesday Blitz July 11 Late 2023"]
[White "Moroni, Luca Jr"]
[Black "Goryachkina, Aleksandra"]
[WhiteFideId "865834"]
[BlackFideId "4147103"]
[WhiteElo "2846"]
[BlackElo "2688"]
[Result "1-0"]
[Round "6"]
[TimeControl "180+2"]
[Date "2023.07.11"]
[WhiteClock "0:00:04"]
[BlackClock "0:00:00"]
[Board "21"]

1. c4 {[%clk 0:03:00]}  Nf6 {[%clk 0:02:58]} 2. Nc3 {[%clk 0:03:00]}  c5 {[%clk 0:02:58]} 3. Nf3 {[%clk 0:02:59]}  Nc6 {[%clk 0:02:58]} 4. d4 {[%clk 0:02:57]}  cxd4 {[%clk 0:02:58]} 5. Nxd4 {[%clk 0:02:58]}  e6 {[%clk 0:02:58]} 6. a3 {[%clk 0:02:58]}  Bc5 {[%clk 0:02:56]} 7. Nb3 {[%clk 0:02:58]}  Bb6 {[%clk 0:02:56]} 8. c5 {[%clk 0:02:58]}  Bc7 {[%clk 0:02:57]} 9. g3 {[%clk 0:02:58]}  O-O {[%clk 0:02:55]} 10. Bg2 {[%clk 0:02:58]}  b6 {[%clk 0:02:54]} 11. O-O {[%clk 0:02:59]}  Be5 {[%clk 0:02:39]} 12. cxb6 {[%clk 0:02:48]}  axb6 {[%clk 0:02:39]} 13. e4 {[%clk 0:02:43]}  Bb7 {[%clk 0:02:34]} 14. Be3 {[%clk 0:02:42]}  Rc8 {[%clk 0:02:21]} 15. Rc1 {[%clk 0:02:40]}  h6 {[%clk 0:01:58]} 16. Qe2 {[%clk 0:02:27]}  Na5 {[%clk 0:01:51]} 17. Nxa5 {[%clk 0:02:23]}  bxa5 {[%clk 0:01:51]} 18. Na4 {[%clk 0:01:46]}  Bc6 {[%clk 0:01:36]} 19. f4 {[%clk 0:01:27]}  Bc7 {[%clk 0:01:18]} 20. Nc3 {[%clk 0:01:20]}  Rb8 {[%clk 0:01:08]} 21. e5 {[%clk 0:01:10]}  Bxg2 {[%clk 0:01:05]} 22. Kxg2 {[%clk 0:01:11]}  Nh7 {[%clk 0:01:03]} 23. Rfd1 {[%clk 0:01:08]}  Re8 {[%clk 0:00:52]} 24. Rc2 {[%clk 0:01:07]}  Nf8 {[%clk 0:00:50]} 25. Nb5 {[%clk 0:01:06]}  Rb7 {[%clk 0:00:37]} 26. a4 {[%clk 0:00:58]}  Qb8 {[%clk 0:00:35]} 27. Rdc1 {[%clk 0:00:52]}  Bb6 {[%clk 0:00:32]} 28. Nd6 {[%clk 0:00:48]}  Bxe3 {[%clk 0:00:32]} 29. Qxe3 {[%clk 0:00:49]}  Rb3 {[%clk 0:00:30]} 30. Qe4 {[%clk 0:00:34]}  Rb4 {[%clk 0:00:26]} 31. Rc4 {[%clk 0:00:28]}  Rxc4 {[%clk 0:00:21]} 32. Rxc4 {[%clk 0:00:27]}  Rd8 {[%clk 0:00:20]} 33. Qc2 {[%clk 0:00:21]}  Qa8+ {[%clk 0:00:19]} 34. Qe4 {[%clk 0:00:19]}  Qb8 {[%clk 0:00:18]} 35. Qc2 {[%clk 0:00:16]}  Qa8+ {[%clk 0:00:18]} 36. Kg1 {[%clk 0:00:16]}  Qf3 {[%clk 0:00:15]} 37. Rc3 {[%clk 0:00:13]}  Qd5 {[%clk 0:00:12]} 38. Qd3 {[%clk 0:00:12]}  Qa8 {[%clk 0:00:06]} 39. f5 {[%clk 0:00:11]}  Rb8 {[%clk 0:00:04]} 40. b3 {[%clk 0:00:06]}  Qa7+ {[%clk 0:00:03]} 41. Kg2 {[%clk 0:00:06]}  Qb6 {[%clk 0:00:03]} 42. Qf3 {[%clk 0:00:06]}  Qb4 {[%clk 0:00:02]} 43. fxe6 {[%clk 0:00:06]}  Nxe6 {[%clk 0:00:02]} 44. Qxf7+ {[%clk 0:00:06]}  Kh8 {[%clk 0:00:02]} 45. Qf3 {[%clk 0:00:04]}  Qd4 {[%clk 0:00:02]} 46. Qe3 {[%clk 0:00:04]}  Qd5+ {[%clk 0:00:02]} 47. Qf3 {[%clk 0:00:04]}  Qd2+ {[%clk 0:00:02]} 48. Kg1 {[%clk 0:00:04]}  Qe1+ {[%clk 0:00:03]} 49. Kg2 {[%clk 0:00:03]}  Qd2+ {[%clk 0:00:03]} 50. Kf1 {[%clk 0:00:04]}  Rf8 {[%clk 0:00:02]} 51. Nf7+ {[%clk 0:00:01]}  Rxf7 {[%clk 0:00:02]} 52. Rc8+ {[%clk 0:00:01]}  Kh7 {[%clk 0:00:01]} 53. Qxf7 {[%clk 0:00:02]}  Qd1+ {[%clk 0:00:01]} 54. Kg2 {[%clk 0:00:02]}  Qd2+ {[%clk 0:00:02]} 55. Qf2 {[%clk 0:00:03]}  Qd5+ {[%clk 0:00:02]} 56. Qf3 {[%clk 0:00:03]}  Qd2+ {[%clk 0:00:03]} 57. Kg1 {[%clk 0:00:03]}  Qe1+ {[%clk 0:00:03]} 58. Qf1 {[%clk 0:00:03]}  Qxe5 {[%clk 0:00:03]} 59. Qf2 {[%clk 0:00:04]}  Qa1+ {[%clk 0:00:02]} 60. Kg2 {[%clk 0:00:03]}  Qe5 {[%clk 0:00:02]} 61. Qc2+ {[%clk 0:00:04]}  g6 {[%clk 0:00:02]} 62. Rc4 {[%clk 0:00:04]}  Qd5+ {[%clk 0:00:01]} 63. Kg1 {[%clk 0:00:04]}  Qe5 {[%clk 0:00:01]} 64. Qd2 {[%clk 0:00:04]}  Qf5 {[%clk 0:00:01]} 65. Qxd7+ {[%clk 0:00:04]}  Ng7 {[%clk 0:00:00]} 66. Qxf5 {[%clk 0:00:04]} 1-0


[Site "https://www.chess.com"]

[Event "Titled Tuesday Blitz July 11 Late 2023"]
[White "Talibov, Shiroghlan"]
[Black "Przybylski, Wojciech"]
[WhiteFideId "13429078"]
[BlackFideId "1117599"]
[WhiteElo "2817"]
[BlackElo "2573"]
[Result "1-0"]
[Round "6"]
[TimeControl "180+2"]
[Date "2023.07.11"]
[WhiteClock "0:00:07"]
[BlackClock "0:00:11"]
[Board "24"]

1. e4 {[%clk 0:03:00]}  e5 {[%clk 0:02:56]} 2. f4 {[%clk 0:02:53]}  d5 {[%clk 0:02:55]} 3. exd5 {[%clk 0:02:49]}  exf4 {[%clk 0:02:55]} 4. Nf3 {[%clk 0:02:49]}  Nf6 {[%clk 0:02:55]} 5. Bb5+ {[%clk 0:02:43]}  Bd7 {[%clk 0:02:53]} 6. Bxd7+ {[%clk 0:02:44]}  Qxd7 {[%clk 0:02:52]} 7. c4 {[%clk 0:02:44]}  Bd6 {[%clk 0:02:47]} 8. Qe2+ {[%clk 0:02:40]}  Kd8 {[%clk 0:02:46]} 9. O-O {[%clk 0:02:39]}  Re8 {[%clk 0:02:43]} 10. Qd1 {[%clk 0:02:39]}  b5 {[%clk 0:02:39]} 11. b3 {[%clk 0:02:37]}  c5 {[%clk 0:02:24]} 12. Nc3 {[%clk 0:02:32]}  b4 {[%clk 0:02:19]} 13. Nb5 {[%clk 0:02:32]}  h6 {[%clk 0:02:15]} 14. Nxd6 {[%clk 0:02:23]}  Qxd6 {[%clk 0:02:15]} 15. d4 {[%clk 0:02:24]}  Nbd7 {[%clk 0:02:13]} 16. dxc5 {[%clk 0:02:22]}  Qxc5+ {[%clk 0:02:10]} 17. Kh1 {[%clk 0:02:14]}  g5 {[%clk 0:02:06]} 18. a3 {[%clk 0:02:13]}  Ng4 {[%clk 0:01:54]} 19. Nd4 {[%clk 0:02:09]}  Nf2+ {[%clk 0:01:41]} 20. Rxf2 {[%clk 0:02:01]}  Qxd4 {[%clk 0:01:41]} 21. Qxd4 {[%clk 0:01:48]}  Re1+ {[%clk 0:01:40]} 22. Rf1 {[%clk 0:01:48]}  Rxf1+ {[%clk 0:01:41]} 23. Qg1 {[%clk 0:01:48]}  Rxg1+ {[%clk 0:01:41]} 24. Kxg1 {[%clk 0:01:49]}  Rb8 {[%clk 0:01:28]} 25. Bd2 {[%clk 0:01:29]}  Nc5 {[%clk 0:00:50]} 26. Bxb4 {[%clk 0:01:23]}  Nxb3 {[%clk 0:00:50]} 27. Re1 {[%clk 0:01:23]}  a5 {[%clk 0:00:47]} 28. Bc3 {[%clk 0:01:23]}  Rc8 {[%clk 0:00:37]} 29. Bf6+ {[%clk 0:01:22]}  Kd7 {[%clk 0:00:37]} 30. Rb1 {[%clk 0:01:07]}  a4 {[%clk 0:00:35]} 31. Bg7 {[%clk 0:01:00]}  Rxc4 {[%clk 0:00:33]} 32. Bxh6 {[%clk 0:01:01]}  f6 {[%clk 0:00:33]} 33. Bg7 {[%clk 0:01:00]}  Ke7 {[%clk 0:00:32]} 34. d6+ {[%clk 0:00:50]}  Kf7 {[%clk 0:00:31]} 35. Rd1 {[%clk 0:00:51]}  Rc8 {[%clk 0:00:27]} 36. d7 {[%clk 0:00:49]}  Rd8 {[%clk 0:00:27]} 37. Bh8 {[%clk 0:00:44]}  Nc5 {[%clk 0:00:25]} 38. Rd6 {[%clk 0:00:44]}  Nxd7 {[%clk 0:00:24]} 39. Bxf6 {[%clk 0:00:42]}  Rc8 {[%clk 0:00:16]} 40. Bxg5 {[%clk 0:00:42]}  Ne5 {[%clk 0:00:13]} 41. Bxf4 {[%clk 0:00:40]}  Nc4 {[%clk 0:00:12]} 42. Ra6 {[%clk 0:00:37]}  Nxa3 {[%clk 0:00:12]} 43. Rxa4 {[%clk 0:00:36]}  Nc4 {[%clk 0:00:12]} 44. g3 {[%clk 0:00:32]}  Ke6 {[%clk 0:00:12]} 45. Kg2 {[%clk 0:00:31]}  Kf5 {[%clk 0:00:13]} 46. Ra7 {[%clk 0:00:30]}  Ke4 {[%clk 0:00:12]} 47. h4 {[%clk 0:00:29]}  Nb6 {[%clk 0:00:10]} 48. Re7+ {[%clk 0:00:27]}  Kf5 {[%clk 0:00:09]} 49. Kh3 {[%clk 0:00:26]}  Nc4 {[%clk 0:00:08]} 50. Rf7+ {[%clk 0:00:22]}  Ke6 {[%clk 0:00:08]} 51. Ra7 {[%clk 0:00:19]}  Kf5 {[%clk 0:00:07]} 52. h5 {[%clk 0:00:18]}  Rh8 {[%clk 0:00:06]} 53. h6 {[%clk 0:00:18]}  Nb6 {[%clk 0:00:06]} 54. Ra5+ {[%clk 0:00:17]}  Ke4 {[%clk 0:00:06]} 55. Kg4 {[%clk 0:00:13]}  Nd5 {[%clk 0:00:06]} 56. Ra6 {[%clk 0:00:06]}  Rg8+ {[%clk 0:00:05]} 57. Bg5 {[%clk 0:00:05]}  Ne3+ {[%clk 0:00:05]} 58. Kh5 {[%clk 0:00:05]}  Nf5 {[%clk 0:00:05]} 59. g4 {[%clk 0:00:03]}  Nd4 {[%clk 0:00:04]} 60. h7 {[%clk 0:00:03]}  Rf8 {[%clk 0:00:04]} 61. Bf6 {[%clk 0:00:02]}  Ne6 {[%clk 0:00:03]} 62. h8=Q {[%clk 0:00:02]}  Kd5 {[%clk 0:00:04]} 63. Qxf8 {[%clk 0:00:02]}  Nxf8 {[%clk 0:00:04]} 64. g5 {[%clk 0:00:02]}  Ne6 {[%clk 0:00:04]} 65. Rxe6 {[%clk 0:00:01]}  Kxe6 {[%clk 0:00:04]} 66. Kh6 {[%clk 0:00:02]}  Kf7 {[%clk 0:00:05]} 67. Kh7 {[%clk 0:00:03]}  Kf8 {[%clk 0:00:05]} 68. Ba1 {[%clk 0:00:04]}  Kf7 {[%clk 0:00:05]} 69. g6+ {[%clk 0:00:05]}  Ke6 {[%clk 0:00:06]} 70. g7 {[%clk 0:00:05]}  Kf5 {[%clk 0:00:07]} 71. g8=Q {[%clk 0:00:06]}  Ke4 {[%clk 0:00:08]} 72. Qf7 {[%clk 0:00:06]}  Kd3 {[%clk 0:00:09]} 73. Bh8 {[%clk 0:00:06]}  Ke4 {[%clk 0:00:08]} 74. Kg6 {[%clk 0:00:07]}  Ke3 {[%clk 0:00:09]} 75. Qf5 {[%clk 0:00:07]}  Kd2 {[%clk 0:00:08]} 76. Kg5 {[%clk 0:00:08]}  Ke2 {[%clk 0:00:09]} 77. Kf4 {[%clk 0:00:08]}  Ke1 {[%clk 0:00:10]} 78. Qc2 {[%clk 0:00:08]}  Kf1 {[%clk 0:00:10]} 79. Kf3 {[%clk 0:00:08]}  Kg1 {[%clk 0:00:11]} 80. Qg2# {[%clk 0:00:07]} 1-0


[Site "https://www.chess.com"]